[Event "GER-ch Youth-U18 2022"]
[Site "Willingen"]
[Date "2022.06.10"]
[Round "8.10"]
[White "Hinrichs, Paul"]
[Black "Orf, Niklas"]
[Result "1-0"]
[ECO "B07"]
[WhiteElo "2244"]
[BlackElo "1797"]
[Annotator "TA"]
[PlyCount "107"]
[EventDate "2022.06.05"]
[EventType "swiss"]
[EventRounds "9"]
[EventCountry "GER"]
[SourceTitle "playchess.com"]
[Source "ChessBase"]
[SourceQuality "1"]
[TimeControl "40/4500+30:900+30"]

{[%evp 11,107,37,40,47,72,69,63,59,77,68,76,65,67,79,99,37,74,85,185,173,213,214,239,181,218,225,211,164,185,195,189,187,485,436,485,475,475,471,475,467,461,128,131,122,117,123,131,124,124,121,126,119,124,126,135,129,131,112,115,116,120,112,124,89,95,90,128,116,142,123,123,104,164,166,186,193,350,200,454,433,979,889,29975,29978,29976,29975,29970,29971,5102,7121,29979,29980,29980,29981,29977,29982,29982,29983]} 1. e4 {[%emt 0:00:00]} d6 {[%emt 0:00:00]} 2. d4 {[%emt 0:00:00]} Nf6 {[%emt 0:00:00]} 3. Nc3 {[%emt 0:00:00]} Nbd7 {[%emt 0:00:00]} 4. f4 {[%emt 0:00:00]} e5 {[%emt 0:00:00]} 5. Nf3 {[%emt 0:00:00]} exd4 {[%emt 0:00:00]} 6. Qxd4 {[%emt 0:00:00]} c6 $1 {[%emt 0:00:00][%cal Od6d5]} 7. Bd2 {[%emt 0:00:00] is cutting edge theory. B07: Pirc Defence: Miscellaneous Systems.} d5 {[%emt 0:00:00]} 8. O-O-O {[%emt 0:00:00]} Bc5 {[%emt 0:00:00]} 9. Qd3 {[%emt 0:00:00][%cal Re4d5] White is slightly better.} O-O {[%emt 0:00:00]} 10. exd5 {[%emt 0:00:00]} Qc7 {[%emt 0:00:00]} 11. Ng5 {[%emt 0:06:24]} Bd6 {[%emt 0:00:00]} 12. dxc6 {[%emt 0:16:59] White is more active.} bxc6 {[%emt 0:00:00] [#]} 13. g3 $146 {[%emt 0:01:27]} (13. Qf3 $1 $16) ({Predecessor:} 13. Qf3 Rb8 14. Nge4 Be7 15. Bc4 Qb6 16. b3 Nxe4 17. Nxe4 Nf6 18. Rhe1 Bf5 19. Bd3 {1-0 (30) Volodarsky,Y (2379)-Burmeister,F (2225) ICCF email 2018}) 13... Rb8 {[%emt 0:00:00]} 14. Nce4 {[%emt 0:01:40]} Nxe4 {[%emt 0:07:57]} (14... Be7 $16 {was necessary.}) 15. Nxe4 $18 {[%emt 0:00:24]} (15. Qxe4 Nf6 16. Qa4 (16. Qd4 c5 $15) 16... Nd5 $14) 15... Be7 {[%emt 0:00:21]} 16. Bc3 {[%emt 0:00:30]} Rd8 {[%emt 0:15:00]} 17. Bg2 {[%emt 0:07:22]} ({Don't play} 17. Qd4 $6 Nf6 18. Qe5 (18. Nxf6+ Bxf6 19. Qc5 Rxd1+ 20. Kxd1 Bxc3 $16) 18... Rxd1+ 19. Kxd1 Qxe5 20. Bxe5 Bg4+ 21. Kc1 Rd8 $16) 17... c5 {[%emt 0:05:12]} 18. Rhe1 $40 {[%emt 0:03:10][%mdl 128] White goes for the king.} Bb7 {[%emt 0:06:32]} 19. Ng5 {[%emt 0:05:41]} Nf8 {[%emt 0:08:21] [#]} 20. Qf5 {[%emt 0:05:26]} Bxg5 {[%emt 0:05:06]} 21. Qxg5 {[%emt 0:06:59][%csl Gc3][%cal Rg5g7]} Ne6 {[%emt 0:12:20]} (21... Rxd1+ 22. Rxd1 Ne6) 22. Rxd8+ {[%emt 0:00:24]} Rxd8 {[%emt 0:04:29] [#]} 23. Rxe6 {[%emt 0:00:11][%mdl 512]} fxe6 {[%emt 0:00:10]} 24. Bxb7 {[%emt 0:00:05][%cal Oc3g7] Hoping for Bxg7! A strong pair of Bishops.} h6 {[%emt 0:01:56]} 25. Qh4 {[%emt 0:00:15]} c4 {[%emt 0:02:13] [#]} 26. Bf3 $2 {[%emt 0:01:18]} (26. f5 $1 $18 {[%cal Rf5e6] and the rest is easy.}) 26... Qb6 $16 {[%emt 0:02:23] ( -> ...Qg1+)} 27. b3 {[%emt 0:00:16]} cxb3 {[%emt 0:00:22]} 28. axb3 {[%emt 0:00:08] Threatens to win with Qe7.} Qe3+ {[%emt 0:06:30]} 29. Kb2 $1 {[%emt 0:00:36]} ({Much worse is} 29. Kb1 $6 Rc8 30. Bb2 (30. Bxg7 Qxf3 31. Qxh6 Qd1+ 32. Ka2 Rxc2+ 33. Bb2 Rxb2+ 34. Kxb2 Qd2+ 35. Kb1 Qd1+ 36. Ka2 Qd2+ 37. Kb1 Qd1+ 38. Kb2 Qd2+ 39. Ka1 Qd1+ 40. Kb2 $11) 30... Qxf3 $11) 29... Rc8 {[%emt 0:00:43] [#]} 30. Bc6 $1 {[%emt 0:03:47][%mdl 512]} Rxc6 {[%emt 0:01:52][%mdl 4096] Endgame KQR-KQB} 31. Qd8+ {[%emt 0:00:07]} Kh7 {[%emt 0:00:04] [#]} 32. Bxg7 {[%emt 0:00:21][%mdl 512]} Rxc2+ {[%emt 0:02:31]} 33. Kxc2 {[%emt 0:00:06] Chess con chili.} Kxg7 {[%emt 0:00:04] KQ-KQ} 34. Qd3 {[%emt 0:02:34]} Qf2+ {[%emt 0:00:37]} 35. Qd2 {[%emt 0:00:02]} Qb6 {[%emt 0:00:07]} 36. Qc3+ {[%emt 0:01:15]} Kg6 {[%emt 0:00:33]} 37. Qf3 {[%emt 0:00:12]} Qc5+ {[%emt 0:02:48]} 38. Kd2 {[%emt 0:03:44]} Qb4+ {[%emt 0:01:27]} 39. Ke2 {[%emt 0:00:45]} Qa3 {[%emt 0:02:36]} 40. Qe4+ {[%emt 0:00:55]} Kf6 {[%emt 0:00:16]} 41. Qc2 {[%emt 0:16:46]} Qa1 {[%emt 0:00:00] [#]} (41... h5 $16 {was called for.} 42. Qc3+ Kf7) 42. Kf3 $1 $18 {[%emt 0:00:00] Black must now prevent Kg4.} Qd4 {[%emt 0:00:00]} 43. Kg4 {[%emt 0:00:00] And now Kh5 would win.} Qd5 {[%emt 0:00:00]} (43... Kg7 {might work better.} 44. Qe2 Qd7 45. Qe5+ Kg6 46. Qe4+ Kg7) 44. b4 {[%emt 0:00:00]} (44. Qh7 $142 h5+ 45. Qxh5 Qd1+ 46. Kh4 Qxb3 47. Qh6+ Kf7 48. Qh7+ Ke8 49. Qxa7) 44... Qh1 $2 {[%emt 0:02:03]} (44... Kg7 45. Qc7+ Kg6) 45. Kh5 {[%emt 0:00:00]} Qf3+ {[%emt 0:06:53]} (45... e5 $142 46. Kxh6 exf4 47. gxf4 Ke6 48. Qc8+ Kd6 49. Qb8+ Ke7 50. Qc7+ Kf6 51. Qd6+ Kf7) 46. Kxh6 {[%emt 0:00:00] Qc5 would kill now.} Qg4 {[%emt 0:00:05]} 47. Qc3+ {[%emt 0:00:00]} Kf7 {[%emt 0:00:05]} 48. Qc7+ {[%emt 0:00:00]} Kf8 {[%emt 0:00:04]} 49. Qb8+ {[%emt 0:00:00]} Kf7 {[%emt 0:00:13]} 50. Qxa7+ {[%emt 0:00:00]} Kf6 {[%emt 0:00:08]} 51. Qd4+ {[%emt 0:00:00] White mates.} Kf7 {[%emt 0:00:05]} 52. Qd7+ {[%emt 0:00:00]} Kf6 {[%emt 0:00:24]} 53. Qd8+ {[%emt 0:00:00]} Kf7 {[%emt 0:00:05]} 54. Qg5 {[%emt 0:00:00] Weighted Error Value: White=0.19 (very precise) /Black=0.64} 1-0

[Event "GER-ch Youth-U18 2022"]
[Site "Willingen"]
[Date "2022.06.10"]
[Round "8.11"]
[White "Bornholdt, Joa Max"]
[Black "Kallweit, Paul"]
[Result "1-0"]
[ECO "A06"]
[WhiteElo "2155"]
[BlackElo "1863"]
[Annotator "TA"]
[PlyCount "59"]
[EventDate "2022.06.05"]
[EventType "swiss"]
[EventRounds "9"]
[EventCountry "GER"]
[SourceTitle "playchess.com"]
[Source "ChessBase"]
[SourceQuality "1"]
[TimeControl "40/4500+30:900+30"]

{[%evp 20,59,7,10,25,6,14,-25,-18,-36,9,12,31,24,41,43,57,53,154,155,156,47,43,48,48,32,37,46,108,15,36,36,306,263,443,452,502,496,445,395,855,815]} 1. Nf3 {[%emt 0:00:00]} d5 2. c4 {[%emt 0:00:00]} c6 {[%emt 0:00:00]} 3. d4 {[%emt 0:00:00]} Nf6 {[%emt 0:00:00]} 4. Qc2 {[%emt 0:00:00]} g6 {[%emt 0:07:42]} 5. Bf4 {[%emt 0:00:00]} Bg7 {[%emt 0:05:42]} 6. e3 {[%emt 0:00:00]} O-O {[%emt 0:02:49]} 7. Nc3 {[%emt 0:00:00]} Bf5 {[%emt 0:13:21]} 8. Qb3 {[%emt 0:00:00]} Qb6 {[%emt 0:00:35]} 9. c5 {[%emt 0:00:00]} Qxb3 {[%emt 0:01:09]} 10. axb3 {[%emt 0:00:00]} Nbd7 {[%emt 0:01:33]} 11. h3 {[%emt 0:00:00]} Ne4 {[%emt 0:11:26] D93: Grünfeld: 4 Nf3 Bg7 5 Bf4 0-0 6 e3.} 12. g4 {[%emt 0:06:09]} Nxc3 {[%emt 0:02:01]} 13. bxc3 {[%emt 0:05:57]} (13. gxf5 {seems wilder.} Ne4 14. Rg1 Kh8 15. fxg6 e5 16. dxe5 fxg6 17. b4) 13... Be4 {[%emt 0:02:16] [#] Black has an edge.} 14. Bg2 $146 {[%emt 0:00:10]} ({Predecessor:} 14. Be2 e5 15. Bg3 exd4 16. exd4 f5 17. g5 f4 18. Bh2 Nxc5 19. O-O Nxb3 20. Ra3 Bxf3 21. Bxf3 {0-1 (32) Navarro Lopez Menchero,D (2301)-Jogstad,M (2267) Chess.com INT 2019}) 14... a6 {[%emt 0:13:48]} 15. O-O {[%emt 0:02:07]} (15. Rg1 {with more complications.} Nxc5 16. dxc5 Bxc3+ 17. Ke2) 15... Rae8 {[%emt 0:02:52]} (15... f5 $5 {[%cal Rf5g4]}) 16. Bc7 {[%emt 0:03:05]} Rc8 {[%emt 0:04:02]} 17. Bg3 {[%emt 0:01:54]} Rce8 {[%emt 0:03:19]} 18. Ra4 {[%emt 0:03:53]} Bd3 {[%emt 0:09:02] [#]} (18... Ra8 $14) 19. Rc1 $1 $16 {[%emt 0:06:12]} e5 {[%emt 0:02:13]} 20. Ne1 {[%emt 0:01:52]} (20. Nxe5 $16 Bxe5 21. Bxe5) 20... Bb5 $14 {[%emt 0:00:40]} 21. Ra2 $36 {[%emt 0:06:17][%mdl 2048] White fights for an advantage.} exd4 {[%emt 0:00:26]} 22. c4 {[%emt 0:11:32][%cal Bc3c4,Bc4b5][%mdl 32]} dxe3 {[%emt 0:00:05][%cal Od7c5]} 23. cxb5 {[%emt 0:00:04]} exf2+ {[%emt 0:01:06]} (23... axb5 $14 24. b4 Bd4) 24. Kxf2 {[%emt 0:03:49]} ({Much worse is} 24. Rxf2 $6 Bd4 $11) (24. Bxf2 $16 {Black must now prevent bxc6.} axb5 25. Ra7) 24... Bd4+ {[%emt 0:00:45]} 25. Kf1 {[%emt 0:00:05] [#] And now bxc6 would win.} Nxc5 $2 {[%emt 0:00:28][%mdl 8192] Black cannot hold the game after this.} (25... axb5 $14 26. Bd6 Ra8) 26. Bd6 {[%emt 0:02:14] Hoping for bxc6.} Rxe1+ $2 {[%emt 0:00:38]} (26... Nxb3 {was necessary.} 27. Rb1 Re3 28. bxa6 bxa6 29. Bxf8 Kxf8) 27. Rxe1 $18 {[%emt 0:00:17]} axb5 {[%emt 0:00:29]} 28. Bxf8 {[%emt 0:00:06]} Kxf8 {[%emt 0:00:03]} 29. Ra7 {[%emt 0:00:28]} Ne4 $2 {[%emt 0:00:52]} (29... Kg7 30. Re8 b4) 30. Ra8+ {[%emt 0:00:06] Weighted Error Value: White=0.26 (precise) /Black=0.53} 1-0

[Event "GER-ch Youth-U18 2022"]
[Site "Willingen"]
[Date "2022.06.10"]
[Round "8.12"]
[White "Chen, Qingzhi Alexander"]
[Black "Mankel, Luca"]
[Result "1/2-1/2"]
[ECO "B15"]
[WhiteElo "1879"]
[BlackElo "2010"]
[Annotator "TA"]
[PlyCount "76"]
[EventDate "2022.06.05"]
[EventType "swiss"]
[EventRounds "9"]
[EventCountry "GER"]
[SourceTitle "playchess.com"]
[Source "ChessBase"]
[SourceQuality "1"]
[TimeControl "40/4500+30:900+30"]

{[%evp 15,76,29,24,28,32,31,27,30,65,33,89,75,160,144,153,94,100,93,157,159,187,156,225,202,329,326,330,330,333,333,358,362,404,400,535,535,795,785,768,770,815,735,1069,899,833,331,522,170,183,177,285,0,0,0,0,0,0,0,0,0,0,0,0]} 1. e4 {[%emt 0:00:00]} c6 {[%emt 0:00:00]} 2. d4 {[%emt 0:00:00]} d5 {[%emt 0:00:00]} 3. Nc3 {[%emt 0:00:00]} dxe4 {[%emt 0:00:00]} 4. Nxe4 {[%emt 0:00:00]} Nf6 {[%emt 0:00:00]} 5. Nxf6+ {[%emt 0:00:00]} exf6 {[%emt 0:00:00]} 6. c3 {[%emt 0:00:00]} Bd6 {[%emt 0:00:00]} 7. Bd3 {[%emt 0:00:00]} O-O {[%emt 0:00:00]} 8. Ne2 {[%emt 0:00:00][%cal Bg1e2,Be2g3,Bg3e4][%mdl 32]} Re8 {[%emt 0:00:00]} 9. Qc2 {[%emt 0:00:00] B15: Caro-Kann: 3 Nc3: 3...g6 and 3...dxe4 4 Nxe4 Nf6 5 Nxf6+ exf6.} h5 {[%emt 0:00:00]} 10. Be3 {[%emt 0:00:00]} Nd7 {[%emt 0:00:00]} 11. O-O-O {[%emt 0:00:00] White has an edge.} b5 {[%emt 0:00:00]} 12. Ng3 {[%emt 0:00:00] [#]} (12. d5 $5) 12... a5 $146 {[%emt 0:02:46]} (12... Nb6 $14) ({Predecessor:} 12... Nb6 13. Nxh5 Bg4 14. Be2 Qd7 15. h3 Bf5 16. Bd3 Bxd3 17. Qxd3 Qe6 18. Kb1 Qd5 {0-1 (29) Hess,R (2591)-Van Foreest,J (2701) Chess.com INT 2021}) 13. d5 $16 {[%emt 0:12:33]} c5 {[%emt 0:10:23]} ({Black should play} 13... Nf8) 14. Bxb5 {[%emt 0:00:49]} Ba6 {[%emt 0:00:20]} 15. Bxa6 {[%emt 0:08:15]} (15. Nf5 $142 Bf8 16. Bc6) 15... Rxa6 {[%emt 0:00:06]} 16. Ne4 {[%emt 0:06:08]} Bf8 {[%emt 0:01:57]} (16... c4 $142) 17. c4 {[%emt 0:01:08] 0x0.0022fa8fed79dp-1022s more active pieces.} a4 {[%emt 0:01:00]} 18. Nc3 {[%emt 0:06:52]} a3 {[%emt 0:00:11] [#]} (18... Ne5 $16 19. Rde1 (19. Nxa4 Ng4 $16) 19... Qd7) 19. b3 $1 $18 {[%emt 0:00:18]} Rxe3 {[%emt 0:03:36]} (19... Ra8 {keeps fighting.} 20. Nb5 g6) 20. fxe3 {[%emt 0:01:14]} g6 {[%emt 0:00:26]} 21. e4 {[%emt 0:07:14]} Bh6+ {[%emt 0:03:08]} 22. Kb1 {[%emt 0:00:27]} Ne5 {[%emt 0:00:31]} 23. h3 {[%emt 0:01:28]} Qa5 {[%emt 0:02:58]} 24. d6 {[%emt 0:03:34]} Nc6 {[%emt 0:04:26]} 25. Nd5 {[%emt 0:05:35]} Nd4 {[%emt 0:01:35] [#]} 26. Rxd4 {[%emt 0:08:03]} cxd4 {[%emt 0:00:24]} 27. c5 {[%emt 0:01:48] Black must now prevent c6.} Kg7 {[%emt 0:00:54]} 28. Rd1 {[%emt 0:05:01]} f5 {[%emt 0:10:42]} 29. exf5 {[%emt 0:03:25] Hoping for Qe4.} Rxd6 {[%emt 0:00:19]} 30. Rxd4 $2 {[%emt 0:02:04]} (30. Qe4 Rxd5 31. Qxd5) 30... Rd8 {[%emt 0:01:02]} (30... Rxd5 $142 31. Rxd5 Qe1+ 32. Rd1 Qe5 33. fxg6 fxg6) 31. fxg6 $2 {[%emt 0:02:02]} (31. Qe2 {Threatening mate with Qe5+.} Bg5 32. Qe5+ Kh6 33. h4 Bxh4 34. Rxh4 Rxd5 35. Qxd5 Qe1+ 36. Kc2 Qxh4 37. c6) 31... Qe1+ {[%emt 0:01:51]} 32. Rd1 {[%emt 0:00:16]} Qe5 {[%emt 0:00:08]} (32... Qe6 $142) 33. c6 $2 {[%emt 0:04:07]} Rxd5 $11 {[%emt 0:01:42] The position is equal.} 34. Rxd5 {[%emt 0:05:30] Chess con chili.} Qxd5 {[%emt 0:00:19]} 35. c7 {[%emt 0:00:08]} Qe5 {[%emt 0:00:14] ( -> ...Qe1+)} 36. c8=Q {[%emt 0:01:29]} Qe1+ {[%emt 0:00:52]} 37. Qc1 $1 {[%emt 0:00:05]} Bxc1 {[%emt 0:00:04]} 38. Qxc1 {[%emt 0:00:28]} Qe4+ {[%emt 0:00:12] Black defended with fortune.  Weighted Error Value: White=0.48/Black=0.44} 1/2-1/2

[Event "GER-ch Youth-U18 2022"]
[Site "Willingen"]
[Date "2022.06.10"]
[Round "8.13"]
[White "Wehrle, Maximilian"]
[Black "Rohde, Niclas"]
[Result "0-1"]
[ECO "A05"]
[WhiteElo "1786"]
[BlackElo "1730"]
[Annotator "NA RC COMBH"]
[PlyCount "78"]
[EventDate "2022.06.05"]
[EventType "swiss"]
[EventRounds "9"]
[EventCountry "GER"]
[SourceTitle "playchess.com"]
[Source "ChessBase"]
[SourceQuality "1"]
[TimeControl "40/4500+30:900+30"]

1. Nf3 {[%emt 0:00:00]} Nf6 {[%emt 0:00:00]} 2. b3 {[%emt 0:00:00]} g6 {[%emt 0:00:00]} 3. Bb2 {[%emt 0:00:00]} Bg7 {[%emt 0:00:00]} 4. g3 {[%emt 0:00:00]} O-O {[%emt 0:00:00]} 5. Bg2 {[%emt 0:00:00]} d6 {[%emt 0:00:00]} 6. O-O {[%emt 0:00:00]} c5 {[%emt 0:00:00]} 7. d4 {[%emt 0:00:00]} Nfd7 {[%emt 0:06:52]} 8. Qc1 {[%emt 0:06:27]} Nc6 {[%emt 0:03:33]} 9. dxc5 {[%emt 0:18:40]} Nxc5 {[%emt 0:00:52]} 10. Bxg7 {[%emt 0:00:54]} Kxg7 {[%emt 0:00:05]} 11. b4 {[%emt 0:10:46]} Ne6 {[%emt 0:02:28]} 12. c4 {[%emt 0:07:02]} Kg8 {[%emt 0:03:45]} 13. a3 {[%emt 0:12:32]} Bd7 {[%emt 0:06:05]} 14. Qd2 {[%emt 0:04:48]} a5 {[%emt 0:08:32]} 15. b5 {[%emt 0:07:44]} Na7 {[%emt 0:00:43]} 16. Nd4 {[%emt 0:00:52]} Rc8 {[%emt 0:02:14]} 17. Nxe6 {[%emt 0:03:15]} Bxe6 {[%emt 0:00:09]} 18. Qd4 {[%emt 0:00:32]} Rc5 {[%emt 0:05:00]} 19. Nd2 {[%emt 0:03:13]} Qb8 {[%emt 0:05:00]} 20. Rac1 {[%emt 0:02:28]} Rfc8 {[%emt 0:01:42]} 21. Qh4 {[%emt 0:01:43]} d5 {[%emt 0:13:00]} 22. Qxe7 {[%emt 0:00:28]} Nxb5 {[%emt 0:03:34]} 23. Rb1 {[%emt 0:01:09]} R8c7 {[%emt 0:02:46]} 24. Qf6 {[%emt 0:02:21]} Nxa3 {[%emt 0:01:53]} 25. cxd5 {[%emt 0:00:55]} Nxb1 {[%emt 0:01:37]} 26. Ne4 {[%emt 0:00:28]} Rxd5 {[%emt 0:01:47]} 27. Qh4 {[%emt 0:00:16]} Qd8 {[%emt 0:08:51]} 28. Nf6+ {[%emt 0:02:17]} Kg7 {[%emt 0:00:06]} 29. e4 {[%emt 0:00:32]} Qxf6 {[%emt 0:02:28]} 30. Qxf6+ {[%emt 0:00:33]} Kxf6 {[%emt 0:00:05]} 31. exd5 {[%emt 0:00:14]} Bf5 {[%emt 0:00:08]} 32. g4 {[%emt 0:00:26]} Bc2 {[%emt 0:00:26]} 33. d6 {[%emt 0:00:07]} Rd7 {[%emt 0:00:41]} 34. Rc1 {[%emt 0:00:13]} Na3 {[%emt 0:00:43]} 35. Ra1 {[%emt 0:00:26]} Nc4 {[%emt 0:00:48]} 36. Rc1 {[%emt 0:00:14]} Bb3 {[%emt 0:00:27]} 37. Bd5 {[%emt 0:00:17]} b5 {[%emt 0:00:12]} 38. Bc6 {[%emt 0:00:09]} Rxd6 {[%emt 0:00:33]} 39. Kf1 Ke5 0-1

[Event "GER-ch Youth-U18 2022"]
[Site "Willingen"]
[Date "2022.06.11"]
[Round "9.1"]
[White "Fromm, Marius"]
[Black "Musiolik, David"]
[Result "1-0"]
[ECO "C15"]
[WhiteElo "2317"]
[BlackElo "2220"]
[Annotator "TA"]
[PlyCount "126"]
[EventDate "2022.06.05"]
[EventType "swiss"]
[EventRounds "9"]
[EventCountry "GER"]
[SourceTitle "playchess.com"]
[Source "ChessBase"]
[SourceQuality "1"]
[TimeControl "40/4500+30:900+30"]

{[%evp 10,126,20,6,14,15,20,13,19,8,12,18,25,27,30,18,16,31,14,23,24,18,19,11,27,20,27,29,33,39,77,54,54,50,50,51,62,22,22,22,27,25,35,17,17,14,15,20,4,0,0,0,45,38,135,134,133,139,129,145,154,144,143,131,145,81,105,100,131,138,138,138,137,73,70,70,68,55,80,80,68,76,117,97,152,92,146,71,100,11,1381,1342,1269,1264,1116,987,4902,4514,29974,29975,29975,29976,29975,29976,29977,29976,29976,29977,29977,29978,29978,29979,29979,29980,29980,29981,29981,29982,29987]} 1. e4 {[%emt 0:00:00]} e6 {[%emt 0:00:00]} 2. d4 {[%emt 0:00:00]} d5 {[%emt 0:00:00]} 3. Nc3 {[%emt 0:00:00]} Bb4 {[%emt 0:00:00]} 4. exd5 {[%emt 0:00:00]} exd5 {[%emt 0:00:00]} 5. Bd3 {[%emt 0:00:00]} Nc6 {[%emt 0:00:00]} 6. Nf3 {[%emt 0:00:00]} Nge7 {[%emt 0:00:00] C01: French: Exchange Variation.} 7. O-O {[%emt 0:00:00]} O-O {[%emt 0:00:00]} 8. h3 {[%emt 0:00:00]} Bf5 {[%emt 0:07:53] The position is equal.} 9. Ne2 {[%emt 0:00:00][%cal Bc3e2,Be2g3,Bg3f5,Bf5e3][%mdl 32]} Bd6 {[%emt 0:06:58]} 10. c3 {[%emt 0:00:00]} Qd7 {[%emt 0:06:50]} 11. Bf4 {[%emt 0:00:00] [#]} a6 $146 {[%emt 0:01:35]} ({Predecessor:} 11... Bxd3 12. Qxd3 Ng6 13. Bxd6 Qxd6 14. Rfe1 Rfe8 15. Ng3 Nf4 16. Qf5 g6 17. Qg5 Ne6 {0-1 (63) Griffith,K (2341)-Hambleton,A (2454) Chess.com INT 2022}) 12. Bxd6 {[%emt 0:00:00]} Qxd6 {[%emt 0:01:07]} 13. Ng3 {[%emt 0:00:00]} Bxd3 {[%emt 0:02:18]} 14. Qxd3 {[%emt 0:00:00]} Rae8 {[%emt 0:04:52]} 15. Rfe1 {[%emt 0:00:00]} Ng6 {[%emt 0:01:47]} 16. Nf5 {[%emt 0:00:00]} Qf6 {[%emt 0:01:18]} 17. g3 {[%emt 0:00:00] Inhibits Nf4.} Re6 {[%emt 0:01:29]} 18. Kg2 {[%emt 0:00:00]} Rfe8 {[%emt 0:05:52]} 19. Ne3 {[%emt 0:00:00]} Nge7 {[%emt 0:04:49]} 20. h4 {[%emt 0:00:00]} Qg6 {[%emt 0:08:18]} 21. Qxg6 {[%emt 0:00:00]} hxg6 {[%emt 0:00:27]} 22. Ng5 {[%emt 0:00:00][%cal Bf3g5,Bg5h3,Bh3f4][%mdl 32]} Rd6 {[%emt 0:01:02]} 23. Re2 {[%emt 0:00:32]} f6 {[%emt 0:02:51]} 24. Nh3 {[%emt 0:00:04]} Kf7 {[%emt 0:00:37]} 25. Rae1 {[%emt 0:00:10]} (25. Kf3 {is interesting.} Nd8 26. Ng2 Ne6 27. Ngf4) 25... Nd8 $1 {[%emt 0:01:03]} 26. Nf4 {[%emt 0:00:43][%cal Oe3d5] Threatens to win with Nexd5!} (26. Kf3 {is more complex.} Ne6 27. g4 c6 28. Ng2) 26... Ne6 {[%emt 0:02:02]} 27. Nd3 {[%emt 0:01:33]} b6 {[%emt 0:01:10]} 28. b4 {[%emt 0:10:21]} Rc6 {[%emt 0:04:28]} 29. Nd1 {[%emt 0:00:04]} Nf5 {[%emt 0:01:14]} 30. a4 {[%emt 0:02:02]} Nd6 {[%emt 0:01:46] Inhibits b5.} 31. f3 {[%emt 0:00:10]} g5 {[%emt 0:14:01]} (31... Nb7 $14) 32. hxg5 $16 {[%emt 0:01:50]} Nxg5 {[%emt 0:02:04]} 33. Nf4 {[%emt 0:00:06]} ({Don't take} 33. Rxe8 Nxe8 34. g4 Ne6 $14) 33... Rxe2+ {[%emt 0:02:39]} 34. Rxe2 {[%emt 0:00:01]} a5 {[%emt 0:00:46]} 35. bxa5 {[%emt 0:00:57]} bxa5 {[%emt 0:00:22]} 36. Nxd5 {[%emt 0:00:04] Re7+ is the strong threat.} Ne6 {[%emt 0:00:43]} 37. Nb2 {[%emt 0:06:39]} ({Better is} 37. f4) 37... Nc4 {[%emt 0:00:44]} 38. Kf2 {[%emt 0:00:10]} Nxb2 {[%emt 0:00:42]} 39. Rxb2 {[%emt 0:00:02][%mdl 4096] Endgame KRN-KRN} Rc4 {[%emt 0:00:25]} 40. Rb7 {[%emt 0:00:32]} Kf8 {[%emt 0:00:42]} 41. Ke2 {[%emt 0:25:16]} ({White should try} 41. Rb8+ Kf7 42. Rb7) 41... c6 {[%emt 0:00:00]} 42. Nc7 {[%emt 0:00:00] White is more active.} Nd8 {[%emt 0:00:00]} 43. Kd3 {[%emt 0:00:00]} Rxa4 {[%emt 0:00:00]} 44. Ra7 {[%emt 0:00:00]} Ra1 {[%emt 0:00:00]} 45. Kc4 {[%emt 0:00:00]} a4 {[%emt 0:03:00]} 46. Kc5 {[%emt 0:00:00] aiming for Kd6.} Ke7 {[%emt 0:02:58]} ({Black should play} 46... Ra3) 47. c4 {[%emt 0:00:00]} (47. f4 $142) 47... a3 {[%emt 0:02:33] [#]} 48. f4 {[%emt 0:00:00]} (48. Nb5+ $142 $1 Ke8 49. Rxa3 Rxa3 50. Nxa3) 48... a2 {[%emt 0:02:39] [#]} 49. f5 {[%emt 0:00:00]} (49. d5 $1 $16 {[%cal Rd5c6]} cxd5 50. Nxd5+ Ke8 51. Nc3) 49... Rf1 $2 {[%emt 0:03:17][%mdl 8192] Black cannot hold the game after this.} (49... Rb1 $11 50. Ne6+ (50. Rxa2 Kd7 $11) 50... Nb7+ 51. Kxc6 a1=Q 52. Rxa1 Rxa1 53. Kxb7 Rc1) 50. Ne6+ $1 $18 {[%emt 0:00:00]} Ke8 {[%emt 0:00:05]} 51. Rxa2 {[%emt 0:00:00] Black must now prevent Nxd8.} Rxf5+ {[%emt 0:00:56]} 52. Kd6 {[%emt 0:00:00]} Nf7+ {[%emt 0:01:03]} 53. Kxc6 {[%emt 0:00:00]} Ke7 {[%emt 0:01:48]} 54. Ra7+ {[%emt 0:00:00] White mates.} Kxe6 {[%emt 0:00:06] KRN-KR} 55. d5+ {[%emt 0:00:00][%cal Bd4d5,Bd5d6,Bd6d7][%mdl 96] Deflection} Ke5 {[%emt 0:00:06]} 56. Rxf7 {[%emt 0:00:00] KR-KR} Kd4 {[%emt 0:01:28]} 57. d6 {[%emt 0:00:03]} Kxc4 {[%emt 0:01:35]} 58. d7 {[%emt 0:00:11]} Rc5+ {[%emt 0:00:07]} 59. Kd6 {[%emt 0:00:11]} Rd5+ {[%emt 0:00:11]} 60. Ke7 {[%emt 0:00:07]} Re5+ {[%emt 0:00:09]} 61. Kf8 {[%emt 0:00:41]} Rd5 {[%emt 0:00:05]} 62. Ke8 {[%emt 0:00:13]} Re5+ {[%emt 0:00:04]} 63. Re7 {[%emt 0:00:04]} Kd5 {Weighted Error Value: White=0.11 (very precise) /Black=0.25 (precise)} 1-0